[Event "*** Titled Tuesday Blitz"]
[Site "Chess.com"]
[Date "2018.04.03"]
[Round "10"]
[White "ShimanovAlex"]
[Black "gkchesstiger"]
[Result "0-1"]
[WhiteElo "2717"]
[BlackElo "2799"]
[TimeControl "180+2"]
[EndTime "15:14:36 PDT"]
[Termination "gkchesstiger won by resignation"]

1. e4 {[%clk 0:03:01.9]} 1... c5 {[%clk 0:02:59.4]} 2. Nc3 {[%clk 0:03:02]} 2...
Nc6 {[%clk 0:02:57.8]} 3. Bb5 {[%clk 0:03:00.4]} 3... Nd4 {[%clk 0:02:48.1]} 4.
Nf3 {[%clk 0:03:00.7]} 4... e6 {[%clk 0:02:45.2]} 5. Bd3 {[%clk 0:02:57.4]} 5...
Nxf3+ {[%clk 0:02:40.1]} 6. Qxf3 {[%clk 0:02:58]} 6... Ne7 {[%clk 0:02:40.8]} 7.
O-O {[%clk 0:02:54.9]} 7... Nc6 {[%clk 0:02:39.7]} 8. Qg3 {[%clk 0:02:55.9]}
8... a6 {[%clk 0:02:40.3]} 9. b3 {[%clk 0:02:40.4]} 9... h5 {[%clk 0:02:37.5]}
10. Bb2 {[%clk 0:02:38.6]} 10... h4 {[%clk 0:02:38.1]} 11. Qe3 {[%clk
0:02:39.6]} 11... h3 {[%clk 0:02:35.2]} 12. g3 {[%clk 0:02:40]} 12... b6 {[%clk
0:02:19.9]} 13. Ne2 {[%clk 0:02:19]} 13... Bb7 {[%clk 0:02:19.9]} 14. f4 {[%clk
0:02:07.7]} 14... Nb4 {[%clk 0:02:16.4]} 15. f5 {[%clk 0:02:03.6]} 15... Qc7
{[%clk 0:02:13.3]} 16. Qg5 {[%clk 0:01:50.1]} 16... Qd6 {[%clk 0:01:44.9]} 17.
Nf4 {[%clk 0:01:44.9]} 17... e5 {[%clk 0:01:43]} 18. Nh5 {[%clk 0:01:33.9]}
18... Nxd3 {[%clk 0:01:03.2]} 19. Nxg7+ {[%clk 0:01:23.8]} 19... Bxg7 {[%clk
0:01:03.5]} 20. Qxg7 {[%clk 0:01:25.7]} 20... O-O-O {[%clk 0:01:03]} 21. cxd3
{[%clk 0:01:24]} 21... Qxd3 {[%clk 0:01:02.4]} 22. Qxe5 {[%clk 0:01:21.1]} 22...
Rde8 {[%clk 0:00:58.2]} 23. Qf4 {[%clk 0:01:16.5]} 23... Rxe4 {[%clk 0:00:57.5]}
24. Qf3 {[%clk 0:01:17.6]} 24... Qxf3 {[%clk 0:00:39.3]} 25. Rxf3 {[%clk
0:01:19.5]} 25... Rhe8 {[%clk 0:00:40.4]} 26. Raf1 {[%clk 0:01:12.8]} 26... d6
{[%clk 0:00:35]} 27. Rf4 {[%clk 0:00:53.6]} 27... Re2 {[%clk 0:00:35.4]} 28.
R4f2 {[%clk 0:00:54.7]} 28... Bg2 {[%clk 0:00:36.3]} 29. Rxe2 {[%clk 0:00:43.3]}
29... Rxe2 {[%clk 0:00:37.1]} 30. Rf4 {[%clk 0:00:42.2]} 30... Rxd2 {[%clk
0:00:38]} 31. Bg7 {[%clk 0:00:42.5]} 31... Rxa2 {[%clk 0:00:36.6]} 32. g4 {[%clk
0:00:43.6]} 32... Bd5 {[%clk 0:00:35]} 33. Bf6 {[%clk 0:00:31.2]} 33... Rg2+
{[%clk 0:00:34.3]} 34. Kf1 {[%clk 0:00:33.1]} 34... Rxh2 {[%clk 0:00:31.8]} 35.
g5 {[%clk 0:00:29.2]} 35... Rg2 {[%clk 0:00:32.6]} 0-1

[Event "*** Titled Tuesday Blitz"]
[Site "Chess.com"]
[Date "2018.04.03"]
[Round "10"]
[White "Aariow"]
[Black "TomPolgar"]
[Result "1-0"]
[WhiteElo "2356"]
[BlackElo "2216"]
[TimeControl "180+2"]
[EndTime "15:14:39 PDT"]
[Termination "Aariow won by resignation"]

1. Nf3 {[%clk 0:03:01.9]} 1... Nf6 {[%clk 0:03:00]} 2. g3 {[%clk 0:03:03.1]}
2... g6 {[%clk 0:02:59.9]} 3. b3 {[%clk 0:03:04.3]} 3... Bg7 {[%clk 0:03:01.1]}
4. Bb2 {[%clk 0:03:06.2]} 4... O-O {[%clk 0:03:01.3]} 5. Bg2 {[%clk 0:03:07.3]}
5... d5 {[%clk 0:03:00.3]} 6. c4 {[%clk 0:03:07.7]} 6... c5 {[%clk 0:02:56.8]}
7. cxd5 {[%clk 0:03:07.9]} 7... Nxd5 {[%clk 0:02:57]} 8. Bxg7 {[%clk 0:03:09.4]}
8... Kxg7 {[%clk 0:02:57.8]} 9. O-O {[%clk 0:03:11.3]} 9... Nc6 {[%clk
0:02:58.2]} 10. d4 {[%clk 0:03:12.8]} 10... cxd4 {[%clk 0:02:52.1]} 11. Nxd4
{[%clk 0:03:14.7]} 11... Nxd4 {[%clk 0:02:53]} 12. Qxd4+ {[%clk 0:03:16.6]}
12... Nf6 {[%clk 0:02:54.1]} 13. Qe5 {[%clk 0:03:18.3]} 13... Qb6 {[%clk
0:02:40]} 14. Nc3 {[%clk 0:03:12.2]} 14... Be6 {[%clk 0:02:39]} 15. Na4 {[%clk
0:03:01.2]} 15... Qb4 {[%clk 0:02:26.5]} 16. Nc5 {[%clk 0:02:36.4]} 16... Bd5
{[%clk 0:02:25.3]} 17. Nd3 {[%clk 0:02:33.7]} 17... Qd6 {[%clk 0:02:19.8]} 18.
Qxd6 {[%clk 0:02:31.7]} 18... exd6 {[%clk 0:02:21]} 19. Rfd1 {[%clk 0:02:27]}
19... Bxg2 {[%clk 0:02:19.1]} 20. Kxg2 {[%clk 0:02:28.9]} 20... Rac8 {[%clk
0:02:19.2]} 21. Nf4 {[%clk 0:02:23.9]} 21... Rfd8 {[%clk 0:02:17.4]} 22. Rd2
{[%clk 0:02:23.8]} 22... Kf8 {[%clk 0:02:07.3]} 23. f3 {[%clk 0:02:23.3]} 23...
Ke7 {[%clk 0:02:06.7]} 24. e4 {[%clk 0:02:22.3]} 24... g5 {[%clk 0:02:06.6]} 25.
Ne2 {[%clk 0:02:15.6]} 25... g4 {[%clk 0:02:06.2]} 26. Nd4 {[%clk 0:02:08.5]}
26... gxf3+ {[%clk 0:02:05.3]} 27. Kxf3 {[%clk 0:02:10.4]} 27... d5 {[%clk
0:02:02.8]} 28. Nf5+ {[%clk 0:01:54.4]} 28... Ke6 {[%clk 0:02:03]} 29. Ng7+
{[%clk 0:01:46.9]} 29... Ke5 {[%clk 0:02:03.1]} 30. exd5 {[%clk 0:01:46.8]}
30... Rc3+ {[%clk 0:01:54.9]} 31. Kg2 {[%clk 0:01:46]} 31... Nxd5 {[%clk
0:01:45.4]} 32. Re1+ {[%clk 0:01:31.8]} 32... Kf6 {[%clk 0:01:35]} 33. Nh5+
{[%clk 0:01:29.6]} 33... Kg5 {[%clk 0:01:29.9]} 34. Re5+ {[%clk 0:01:26.9]}
34... f5 {[%clk 0:01:29.5]} 35. h4+ {[%clk 0:00:48.9]} 35... Kxh5 {[%clk
0:00:57.5]} 36. Rdxd5 {[%clk 0:00:49.3]} 36... Rxd5 {[%clk 0:00:56]} 37. Rxd5
{[%clk 0:00:49.9]} 37... Rc2+ {[%clk 0:00:53.9]} 38. Kf3 {[%clk 0:00:45.1]}
38... Rxa2 {[%clk 0:00:53.9]} 39. g4+ {[%clk 0:00:42]} 39... Kxh4 {[%clk
0:00:52.6]} 40. Rxf5 {[%clk 0:00:42.5]} 40... Ra5 {[%clk 0:00:39]} 41. Rxa5
{[%clk 0:00:41.6]} 1-0

[Event "*** Titled Tuesday Blitz"]
[Site "Chess.com"]
[Date "2018.04.03"]
[Round "10"]
[White "PowerThinking2650"]
[Black "aa175"]
[Result "0-1"]
[WhiteElo "2205"]
[BlackElo "1948"]
[TimeControl "180+2"]
[EndTime "15:14:43 PDT"]
[Termination "aa175 won by checkmate"]

1. e4 {[%clk 0:03:01.8]} 1... e5 {[%clk 0:02:48.1]} 2. Nf3 {[%clk 0:03:02.7]}
2... f5 {[%clk 0:02:48.9]} 3. Nxe5 {[%clk 0:03:02.2]} 3... Nc6 {[%clk 0:02:48]}
4. Nxc6 {[%clk 0:03:02]} 4... dxc6 {[%clk 0:02:47]} 5. exf5 {[%clk 0:03:02.9]}
5... Bxf5 {[%clk 0:02:48.4]} 6. Bc4 {[%clk 0:03:01.8]} 6... Qh4 {[%clk
0:02:45.5]} 7. Qe2+ {[%clk 0:02:58.1]} 7... Kd7 {[%clk 0:02:44.3]} 8. d3 {[%clk
0:02:45.7]} 8... b5 {[%clk 0:02:27.6]} 9. Bb3 {[%clk 0:02:43.7]} 9... Bc5 {[%clk
0:02:27.7]} 10. O-O {[%clk 0:02:34.1]} 10... Nf6 {[%clk 0:02:26]} 11. Qf3 {[%clk
0:02:26.8]} 11... Bg4 {[%clk 0:02:07.8]} 12. Qg3 {[%clk 0:02:26.6]} 12... Qxg3
{[%clk 0:02:05.8]} 13. hxg3 {[%clk 0:02:27.4]} 13... h5 {[%clk 0:02:07.6]} 14.
c3 {[%clk 0:02:23.4]} 14... h4 {[%clk 0:02:02]} 15. d4 {[%clk 0:02:23.6]} 15...
Bd6 {[%clk 0:01:04.4]} 16. gxh4 {[%clk 0:02:24]} 16... Rxh4 {[%clk 0:01:03.8]}
17. f3 {[%clk 0:02:24]} 17... Bg3 {[%clk 0:01:00.8]} 18. Rd1 {[%clk 0:01:39.1]}
18... Rh1+ {[%clk 0:00:08.1]} 19. Kxh1 {[%clk 0:01:34.7]} 19... Bf2 {[%clk
0:00:10]} 20. Bf4 {[%clk 0:01:00]} 20... Rh8+ {[%clk 0:00:03.6]} 21. Bh2 {[%clk
0:01:00.3]} 21... Nh5 {[%clk 0:00:03.5]} 22. Be6+ {[%clk 0:00:11.9]} 22... Kxe6
{[%clk 0:00:03]} 23. d5+ {[%clk 0:00:11.5]} 23... Kd7 {[%clk 0:00:03.5]} 24.
dxc6+ {[%clk 0:00:12]} 24... Kc8 {[%clk 0:00:05.1]} 25. Rd8+ {[%clk 0:00:06.6]}
25... Kxd8 {[%clk 0:00:05.9]} 26. g3 {[%clk 0:00:05.7]} 26... Bxf3# {[%clk
0:00:06.5]} 0-1

[Event "*** Titled Tuesday Blitz"]
[Site "Chess.com"]
[Date "2018.04.03"]
[Round "10"]
[White "andante"]
[Black "TastyFrenchFries"]
[Result "0-1"]
[WhiteElo "2192"]
[BlackElo "2321"]
[TimeControl "180+2"]
[EndTime "15:14:58 PDT"]
[Termination "TastyFrenchFries won on time"]

1. d4 {[%clk 0:02:58.5]} 1... e6 {[%clk 0:03:01.9]} 2. Nf3 {[%clk 0:02:57.6]}
2... Nf6 {[%clk 0:03:03.4]} 3. Bg5 {[%clk 0:02:56.6]} 3... Be7 {[%clk
0:02:58.2]} 4. Qd3 {[%clk 0:02:57.2]} 4... h6 {[%clk 0:02:47.6]} 5. Bh4 {[%clk
0:02:56.2]} 5... d5 {[%clk 0:02:47.3]} 6. Nbd2 {[%clk 0:02:52.7]} 6... O-O
{[%clk 0:02:45.4]} 7. e4 {[%clk 0:02:49.9]} 7... Nxe4 {[%clk 0:02:44.2]} 8. Bxe7
{[%clk 0:02:48.1]} 8... Qxe7 {[%clk 0:02:46.1]} 9. Nxe4 {[%clk 0:02:47.5]} 9...
dxe4 {[%clk 0:02:48]} 10. Qxe4 {[%clk 0:02:47.7]} 10... Qb4+ {[%clk 0:02:47.5]}
11. Nd2 {[%clk 0:02:13.2]} 11... f5 {[%clk 0:02:21.1]} 12. Qe3 {[%clk
0:01:59.9]} 12... Qxb2 {[%clk 0:02:19.3]} 13. Rb1 {[%clk 0:02:00.9]} 13... Qxc2
{[%clk 0:02:19.2]} 14. Bc4 {[%clk 0:02:01.1]} 14... f4 {[%clk 0:01:55.1]} 15.
Qe2 {[%clk 0:01:44.3]} 15... Nc6 {[%clk 0:01:50.7]} 16. Bd3 {[%clk 0:01:37.9]}
16... Qxa2 {[%clk 0:01:39.4]} 17. Qe4 {[%clk 0:01:32.4]} 17... Rf5 {[%clk
0:01:40.6]} 18. Bc4 {[%clk 0:00:58.8]} 18... Qa5 {[%clk 0:01:34.5]} 19. O-O
{[%clk 0:00:51.5]} 19... Rf6 {[%clk 0:01:17.8]} 20. Nf3 {[%clk 0:00:43.7]} 20...
Qf5 {[%clk 0:01:17.8]} 21. Qe2 {[%clk 0:00:41.7]} 21... Qg4 {[%clk 0:01:01.6]}
22. Rb5 {[%clk 0:00:36]} 22... Rg6 {[%clk 0:00:56]} 23. g3 {[%clk 0:00:28.2]}
23... fxg3 {[%clk 0:00:53.3]} 24. fxg3 {[%clk 0:00:27.2]} 24... Nxd4 {[%clk
0:00:46.5]} 25. Nxd4 {[%clk 0:00:20.6]} 25... Qxd4+ {[%clk 0:00:48.4]} 26. Kg2
{[%clk 0:00:15.5]} 26... Bd7 {[%clk 0:00:49.5]} 27. Rb4 {[%clk 0:00:13.5]} 27...
Qc5 {[%clk 0:00:41.9]} 28. Rb2 {[%clk 0:00:06.6]} 28... Bc6+ {[%clk 0:00:39.7]}
29. Kh3 {[%clk 0:00:07.9]} 29... Rd8 {[%clk 0:00:29.1]} 30. Bxe6+ {[%clk
0:00:06]} 30... Kh8 {[%clk 0:00:28.6]} 31. Bg4 {[%clk 0:00:07]} 31... Rxg4
{[%clk 0:00:20.6]} 32. Qxg4 {[%clk 0:00:06.4]} 32... Bd7 {[%clk 0:00:21.3]} 0-1

[Event "*** Titled Tuesday Blitz"]
[Site "Chess.com"]
[Date "2018.04.03"]
[Round "10"]
[White "Firouzja2003"]
[Black "Vincent_Vega95"]
[Result "0-1"]
[WhiteElo "2723"]
[BlackElo "2574"]
[TimeControl "180+2"]
[EndTime "15:15:07 PDT"]
[Termination "Vincent_Vega95 won by resignation"]

1. d4 {[%clk 0:03:01.9]} 1... Nf6 {[%clk 0:03:00]} 2. Nf3 {[%clk 0:03:03.8]}
2... g6 {[%clk 0:03:00.8]} 3. g3 {[%clk 0:03:05.7]} 3... Bg7 {[%clk 0:03:01.5]}
4. Bg2 {[%clk 0:03:07.6]} 4... O-O {[%clk 0:03:03]} 5. O-O {[%clk 0:03:09.5]}
5... d6 {[%clk 0:03:04.5]} 6. c4 {[%clk 0:03:11.4]} 6... Nc6 {[%clk 0:03:05.7]}
7. Nc3 {[%clk 0:03:13.3]} 7... Bg4 {[%clk 0:03:06.8]} 8. b3 {[%clk 0:03:15.2]}
8... Nd7 {[%clk 0:03:05.5]} 9. e3 {[%clk 0:03:16]} 9... e5 {[%clk 0:03:04.8]}
10. Ne2 {[%clk 0:03:17.1]} 10... a5 {[%clk 0:02:28.2]} 11. Bb2 {[%clk
0:03:15.3]} 11... Re8 {[%clk 0:02:26.8]} 12. dxe5 {[%clk 0:03:14.4]} 12... Ndxe5
{[%clk 0:02:09.3]} 13. Nxe5 {[%clk 0:03:12.7]} 13... Nxe5 {[%clk 0:02:11.2]} 14.
Qc2 {[%clk 0:03:12.5]} 14... Bf3 {[%clk 0:02:03.8]} 15. Bxf3 {[%clk 0:03:08.3]}
15... Nxf3+ {[%clk 0:02:04.3]} 16. Kg2 {[%clk 0:03:10.2]} 16... Ne5 {[%clk
0:02:03.8]} 17. Nf4 {[%clk 0:03:08.3]} 17... c6 {[%clk 0:01:54.7]} 18. Rad1
{[%clk 0:03:07.1]} 18... Qc7 {[%clk 0:01:55.8]} 19. Nd3 {[%clk 0:03:04.4]} 19...
a4 {[%clk 0:01:51.9]} 20. Nxe5 {[%clk 0:03:05.3]} 20... Bxe5 {[%clk 0:01:51.6]}
21. Bxe5 {[%clk 0:03:05.9]} 21... dxe5 {[%clk 0:01:53.3]} 22. b4 {[%clk
0:03:07]} 22... a3 {[%clk 0:01:53.6]} 23. c5 {[%clk 0:03:06.9]} 23... e4 {[%clk
0:01:51.3]} 24. Rd4 {[%clk 0:03:06.8]} 24... Qe5 {[%clk 0:01:51.2]} 25. Rfd1
{[%clk 0:03:03.6]} 25... Re7 {[%clk 0:01:49.6]} 26. Qc3 {[%clk 0:03:02]} 26...
Kg7 {[%clk 0:01:49.3]} 27. Rc4 {[%clk 0:03:01.2]} 27... Qxc3 {[%clk 0:01:46.8]}
28. Rxc3 {[%clk 0:03:03.1]} 28... Ra4 {[%clk 0:01:48.2]} 29. Rd4 {[%clk
0:03:04.1]} 29... f5 {[%clk 0:01:47.9]} 30. Kf1 {[%clk 0:02:55]} 30... Kf6
{[%clk 0:01:48]} 31. Ke2 {[%clk 0:02:55.1]} 31... Ke6 {[%clk 0:01:49.2]} 32. Kd2
{[%clk 0:02:54.3]} 32... Rd7 {[%clk 0:01:50.2]} 33. Rc4 {[%clk 0:02:52.4]} 33...
g5 {[%clk 0:01:29.5]} 34. Kc3 {[%clk 0:02:51.3]} 34... Rf7 {[%clk 0:01:20.1]}
35. Kb3 {[%clk 0:02:50.5]} 35... Ra8 {[%clk 0:01:21]} 36. g4 {[%clk 0:02:46.9]}
36... Re8 {[%clk 0:01:15.4]} 37. gxf5+ {[%clk 0:02:46.1]} 37... Kxf5 {[%clk
0:01:16]} 38. Kxa3 {[%clk 0:02:48]} 38... Rfe7 {[%clk 0:01:08]} 39. h3 {[%clk
0:02:45.5]} 39... Kg6 {[%clk 0:01:07.7]} 40. Ka4 {[%clk 0:02:40.8]} 40... Kh5
{[%clk 0:01:08.3]} 41. Ka5 {[%clk 0:02:42.7]} 41... Kh4 {[%clk 0:01:09.5]} 42.
Kb6 {[%clk 0:02:43.2]} 42... h5 {[%clk 0:01:10.2]} 43. a4 {[%clk 0:02:43.6]}
43... Kxh3 {[%clk 0:01:11.4]} 44. b5 {[%clk 0:02:44.8]} 44... h4 {[%clk
0:01:05.8]} 45. bxc6 {[%clk 0:02:44.8]} 45... bxc6 {[%clk 0:01:07.4]} 46. a5
{[%clk 0:02:40.2]} 46... Kg2 {[%clk 0:01:08.4]} 47. Rc2 {[%clk 0:02:34.7]} 47...
h3 {[%clk 0:01:07.3]} 48. f4+ {[%clk 0:02:35.1]} 48... Kf3 {[%clk 0:01:03.4]}
49. fxg5 {[%clk 0:02:36.2]} 49... Kxe3 {[%clk 0:01:04.5]} 50. Ra4 {[%clk
0:02:37]} 50... Kf3 {[%clk 0:01:03.7]} 51. a6 {[%clk 0:02:32.8]} 51... e3 {[%clk
0:01:04.6]} 52. a7 {[%clk 0:02:34.1]} 52... e2 {[%clk 0:01:04.3]} 53. Rxe2
{[%clk 0:02:35.5]} 53... Rxe2 {[%clk 0:01:00.8]} 54. a8=Q {[%clk 0:02:37.4]}
54... Rxa8 {[%clk 0:01:00.8]} 55. Rxa8 {[%clk 0:02:39.3]} 55... Re6 {[%clk
0:00:43.4]} 56. Rd8 {[%clk 0:02:20.7]} 56... h2 {[%clk 0:00:41.7]} 57. Rd6
{[%clk 0:02:22.6]} 57... Rxd6 {[%clk 0:00:23.3]} 58. cxd6 {[%clk 0:02:24.2]}
58... h1=Q {[%clk 0:00:24.5]} 59. d7 {[%clk 0:02:26.1]} 59... Qh8 {[%clk
0:00:20.6]} 60. Kc7 {[%clk 0:02:24.8]} 60... Qe5+ {[%clk 0:00:19.4]} 61. Kxc6
{[%clk 0:02:22.7]} 61... Qxg5 {[%clk 0:00:19.6]} 62. Kc7 {[%clk 0:02:23]} 62...
Qc5+ {[%clk 0:00:19.9]} 63. Kd8 {[%clk 0:02:24.5]} 63... Kf4 {[%clk 0:00:20.4]}
64. Ke8 {[%clk 0:02:26.4]} 64... Qe5+ {[%clk 0:00:21.3]} 65. Kf7 {[%clk
0:02:28.3]} 65... Qd6 {[%clk 0:00:21.6]} 66. Ke8 {[%clk 0:02:30.2]} 0-1

[Event "*** Titled Tuesday Blitz"]
[Site "Chess.com"]
[Date "2018.04.03"]
[Round "10"]
[White "florianschwabeneder"]
[Black "Fins0905"]
[Result "0-1"]
[WhiteElo "2382"]
[BlackElo "2581"]
[TimeControl "180+2"]
[EndTime "15:15:11 PDT"]
[Termination "Fins0905 won by resignation"]

1. b3 {[%clk 0:03:01.8]} 1... d5 {[%clk 0:03:00.2]} 2. Bb2 {[%clk 0:03:02.8]}
2... Bg4 {[%clk 0:03:01.4]} 3. h3 {[%clk 0:03:03.1]} 3... Bh5 {[%clk 0:03:01.8]}
4. g4 {[%clk 0:03:03.8]} 4... Bg6 {[%clk 0:03:02.6]} 5. Nf3 {[%clk 0:03:04.9]}
5... e6 {[%clk 0:03:00.3]} 6. d3 {[%clk 0:02:56.1]} 6... Nd7 {[%clk 0:02:59.3]}
7. Nbd2 {[%clk 0:02:56.1]} 7... h6 {[%clk 0:02:55.5]} 8. e3 {[%clk 0:02:56.5]}
8... Ngf6 {[%clk 0:02:55.6]} 9. Nh4 {[%clk 0:02:56.7]} 9... Bh7 {[%clk
0:02:56.4]} 10. Qe2 {[%clk 0:02:54.9]} 10... Bb4 {[%clk 0:02:53.5]} 11. a3
{[%clk 0:02:52.7]} 11... Bd6 {[%clk 0:02:53.5]} 12. f4 {[%clk 0:02:24.2]} 12...
Qe7 {[%clk 0:02:34.3]} 13. Nhf3 {[%clk 0:02:18.3]} 13... e5 {[%clk 0:02:22]} 14.
fxe5 {[%clk 0:01:56.5]} 14... Nxe5 {[%clk 0:02:23.5]} 15. Bg2 {[%clk 0:01:55.4]}
15... O-O-O {[%clk 0:02:17.6]} 16. O-O {[%clk 0:01:52.7]} 16... Rhe8 {[%clk
0:02:14.9]} 17. Rae1 {[%clk 0:01:51.8]} 17... Nxf3+ {[%clk 0:02:10.5]} 18. Qxf3
{[%clk 0:01:48.5]} 18... Be5 {[%clk 0:01:34.5]} 19. Bxe5 {[%clk 0:01:39.9]}
19... Qxe5 {[%clk 0:01:36.4]} 20. b4 {[%clk 0:01:39]} 20... Qc3 {[%clk
0:01:29.7]} 21. Nb3 {[%clk 0:01:27.1]} 21... Qxc2 {[%clk 0:01:17.2]} 22. Nc5
{[%clk 0:01:27]} 22... Bxd3 {[%clk 0:01:00.4]} 23. Rc1 {[%clk 0:01:26.4]} 23...
Qe2 {[%clk 0:00:54]} 24. Qf4 {[%clk 0:01:14.6]} 24... Qxe3+ {[%clk 0:00:43.8]}
25. Qxe3 {[%clk 0:01:14]} 25... Rxe3 {[%clk 0:00:45.7]} 26. Rxf6 {[%clk
0:00:23.2]} 26... gxf6 {[%clk 0:00:43.3]} 27. Rc3 {[%clk 0:00:24.1]} 27... Re1+
{[%clk 0:00:38]} 28. Kf2 {[%clk 0:00:24.8]} 28... Re2+ {[%clk 0:00:39.1]} 29.
Kf3 {[%clk 0:00:25.6]} 29... Bb5 {[%clk 0:00:17.7]} 30. a4 {[%clk 0:00:26.1]}
30... d4 {[%clk 0:00:12.3]} 31. Ra3 {[%clk 0:00:13.6]} 31... Bc4 {[%clk
0:00:09.4]} 32. Bf1 {[%clk 0:00:14.3]} 32... Rc2 {[%clk 0:00:06.5]} 33. Bg2
{[%clk 0:00:12]} 33... Rc3+ {[%clk 0:00:07.1]} 34. Rxc3 {[%clk 0:00:12]} 34...
dxc3 {[%clk 0:00:09]} 0-1

[Event "*** Titled Tuesday Blitz"]
[Site "Chess.com"]
[Date "2018.04.03"]
[Round "10"]
[White "Mistheoretical"]
[Black "RojonR"]
[Result "0-1"]
[WhiteElo "2288"]
[BlackElo "2380"]
[TimeControl "180+2"]
[EndTime "15:15:51 PDT"]
[Termination "RojonR won on time"]

1. d4 {[%clk 0:03:01.9]} 1... Nf6 {[%clk 0:03:00.3]} 2. Bg5 {[%clk 0:03:02.7]}
2... e6 {[%clk 0:03:00.8]} 3. Nd2 {[%clk 0:03:03.7]} 3... Be7 {[%clk 0:03:01.5]}
4. e4 {[%clk 0:03:04.8]} 4... d6 {[%clk 0:03:02.5]} 5. Bd3 {[%clk 0:03:05.8]}
5... Nbd7 {[%clk 0:03:03.1]} 6. Ngf3 {[%clk 0:03:06.1]} 6... e5 {[%clk
0:03:04.1]} 7. c3 {[%clk 0:03:06.1]} 7... O-O {[%clk 0:03:04.2]} 8. O-O {[%clk
0:03:06.9]} 8... b6 {[%clk 0:03:05.5]} 9. Ne1 {[%clk 0:02:54.4]} 9... Bb7 {[%clk
0:03:00.7]} 10. Nc2 {[%clk 0:02:44.3]} 10... c5 {[%clk 0:02:55.1]} 11. dxe5
{[%clk 0:02:14.7]} 11... Nxe5 {[%clk 0:02:54.1]} 12. Qe2 {[%clk 0:00:57.2]}
12... Nxd3 {[%clk 0:02:37.7]} 13. Qxd3 {[%clk 0:00:59.1]} 13... d5 {[%clk
0:02:22]} 14. Bxf6 {[%clk 0:00:33.3]} 14... Bxf6 {[%clk 0:02:19.5]} 15. exd5
{[%clk 0:00:30.8]} 15... Qxd5 {[%clk 0:02:19.6]} 16. Qxd5 {[%clk 0:00:30.5]}
16... Bxd5 {[%clk 0:02:21.5]} 17. Rad1 {[%clk 0:00:24.3]} 17... Bxa2 {[%clk
0:02:06.8]} 18. Ne3 {[%clk 0:00:15.3]} 18... Be6 {[%clk 0:02:03.5]} 19. Ne4
{[%clk 0:00:15.5]} 19... Be7 {[%clk 0:02:01.1]} 20. f4 {[%clk 0:00:15.2]} 20...
f5 {[%clk 0:01:59.2]} 21. Nd2 {[%clk 0:00:16.4]} 21... Rfd8 {[%clk 0:01:56.5]}
22. Ndc4 {[%clk 0:00:13.6]} 22... Bf6 {[%clk 0:01:46.3]} 23. g3 {[%clk
0:00:12.5]} 23... g6 {[%clk 0:01:46.2]} 24. Kf2 {[%clk 0:00:13]} 24... Kf7
{[%clk 0:01:41.8]} 25. Nd6+ {[%clk 0:00:12.3]} 25... Ke7 {[%clk 0:01:42.4]} 26.
Nb5 {[%clk 0:00:13.8]} 26... Rdc8 {[%clk 0:01:25]} 27. Rfe1 {[%clk 0:00:10.2]}
27... Rc6 {[%clk 0:01:09]} 28. Nd5+ {[%clk 0:00:10.5]} 28... Kf7 {[%clk
0:01:09.6]} 29. Ndc7 {[%clk 0:00:06.8]} 29... Rd8 {[%clk 0:00:44.5]} 30. Nxe6
{[%clk 0:00:05.8]} 30... Rxe6 {[%clk 0:00:23.8]} 31. Rxd8 {[%clk 0:00:04.6]}
31... Bxd8 {[%clk 0:00:22.5]} 32. Nxa7 {[%clk 0:00:05.3]} 32... Rd6 {[%clk
0:00:20.7]} 33. Nb5 {[%clk 0:00:04.9]} 33... Rd2+ {[%clk 0:00:21]} 34. Re2
{[%clk 0:00:06.4]} 34... Rd1 {[%clk 0:00:21.7]} 35. Ke3 {[%clk 0:00:05.9]} 35...
Be7 {[%clk 0:00:16.6]} 36. Rd2 {[%clk 0:00:04.8]} 36... Rb1 {[%clk 0:00:17.3]}
37. Na3 {[%clk 0:00:05]} 37... Rh1 {[%clk 0:00:16.2]} 38. c4 {[%clk 0:00:03.6]}
38... Bf6 {[%clk 0:00:14.2]} 39. Nb5 {[%clk 0:00:02]} 39... h5 {[%clk
0:00:13.3]} 0-1

[Event "*** Titled Tuesday Blitz"]
[Site "Chess.com"]
[Date "2018.04.03"]
[Round "10"]
[White "chesstatour"]
[Black "patrisiii123"]
[Result "0-1"]
[WhiteElo "1985"]
[BlackElo "2257"]
[TimeControl "180+2"]
[EndTime "15:15:54 PDT"]
[Termination "patrisiii123 won by resignation"]

1. c4 {[%clk 0:03:01.9]} 1... c5 {[%clk 0:02:57.5]} 2. Nf3 {[%clk 0:03:01.4]}
2... Nf6 {[%clk 0:02:58.3]} 3. d4 {[%clk 0:02:58.8]} 3... cxd4 {[%clk
0:02:54.6]} 4. Nxd4 {[%clk 0:03:00.7]} 4... d6 {[%clk 0:02:49.6]} 5. Nc3 {[%clk
0:02:59.6]} 5... e6 {[%clk 0:02:43.8]} 6. g3 {[%clk 0:03:00.4]} 6... Be7 {[%clk
0:02:41.5]} 7. Bg2 {[%clk 0:03:01.5]} 7... O-O {[%clk 0:02:39.1]} 8. O-O {[%clk
0:03:02.1]} 8... a6 {[%clk 0:02:38]} 9. b3 {[%clk 0:02:43.7]} 9... Qc7 {[%clk
0:02:35.8]} 10. Bb2 {[%clk 0:02:44.7]} 10... Nc6 {[%clk 0:02:33.7]} 11. Rc1
{[%clk 0:02:31.8]} 11... Nxd4 {[%clk 0:02:26.3]} 12. Qxd4 {[%clk 0:02:31.1]}
12... Bd7 {[%clk 0:02:26.8]} 13. Rfd1 {[%clk 0:02:13.4]} 13... Rfd8 {[%clk
0:02:21.4]} 14. e4 {[%clk 0:01:49.7]} 14... Rac8 {[%clk 0:02:10.8]} 15. h3
{[%clk 0:01:26.6]} 15... Qb8 {[%clk 0:02:04.6]} 16. Kh2 {[%clk 0:01:26.7]} 16...
h5 {[%clk 0:01:48.8]} 17. Qe3 {[%clk 0:01:13.1]} 17... b5 {[%clk 0:01:43.7]} 18.
cxb5 {[%clk 0:01:10.4]} 18... axb5 {[%clk 0:01:45.6]} 19. Ne2 {[%clk 0:01:03.8]}
19... e5 {[%clk 0:01:39.9]} 20. Bf3 {[%clk 0:00:48.8]} 20... Be6 {[%clk
0:01:29.3]} 21. Nc3 {[%clk 0:00:45.1]} 21... Qa8 {[%clk 0:01:23.3]} 22. a4
{[%clk 0:00:31.8]} 22... Bxb3 {[%clk 0:01:17.2]} 23. Rd2 {[%clk 0:00:17.7]}
23... bxa4 {[%clk 0:01:15.7]} 24. Ba3 {[%clk 0:00:17.9]} 24... Bf8 {[%clk
0:01:02]} 25. Nd5 {[%clk 0:00:10.8]} 25... Nxd5 {[%clk 0:00:57.7]} 26. exd5
{[%clk 0:00:09.7]} 26... Rxc1 {[%clk 0:00:54.8]} 27. Bxc1 {[%clk 0:00:11.6]}
27... Rc8 {[%clk 0:00:49.6]} 28. Ba3 {[%clk 0:00:09.9]} 28... g6 {[%clk
0:00:42.1]} 29. Qg5 {[%clk 0:00:08]} 29... Qa5 {[%clk 0:00:27.7]} 30. Bxh5
{[%clk 0:00:05.5]} 30... Be7 {[%clk 0:00:18.7]} 31. Qxe7 {[%clk 0:00:05.2]}
31... Qxd2 {[%clk 0:00:16.2]} 32. Kg2 {[%clk 0:00:02]} 32... Bxd5+ {[%clk
0:00:11.8]} 33. Bf3 {[%clk 0:00:03]} 33... Bxf3+ {[%clk 0:00:08.2]} 34. Kxf3
{[%clk 0:00:04.9]} 34... Qd3+ {[%clk 0:00:02.6]} 35. Kg2 {[%clk 0:00:03.3]}
35... Qxa3 {[%clk 0:00:04.5]} 36. h4 {[%clk 0:00:03.2]} 36... Qc5 {[%clk
0:00:05.6]} 37. h5 {[%clk 0:00:04.3]} 37... Qd5+ {[%clk 0:00:07.1]} 38. Kh2
{[%clk 0:00:05.3]} 38... Qe6 {[%clk 0:00:08.5]} 39. Qg5 {[%clk 0:00:05.6]} 39...
Qf5 {[%clk 0:00:09.5]} 40. Qe7 {[%clk 0:00:04]} 40... Qxh5+ {[%clk 0:00:10.5]}
41. Kg2 {[%clk 0:00:05.7]} 41... Qf5 {[%clk 0:00:11.8]} 42. Qxd6 {[%clk
0:00:06.3]} 42... Rc2 {[%clk 0:00:12.6]} 43. Qd8+ {[%clk 0:00:06.3]} 43... Kg7
{[%clk 0:00:14]} 0-1